fUST/lending_fUST_20250210
["ID","MTS","AMOUNT","RATE_DAILY","PERIOD"]
[352586033,1739181039204,-500.0,0.00010958,2]
[352586036,1739181039214,-1666.01,0.00010958,2]
[352586037,1739181039223,-500.0,0.00010958,2]
[352586040,1739181039234,-649.17,0.00010958,2]
[352586042,1739181039244,-500.0,0.00010958,2]
[352586044,1739181039255,-500.0,0.00010958,2]
[352586046,1739181039266,-500.0,0.00010958,2]
[352586048,1739181039276,-500.0,0.00010958,2]
[352586050,1739181039285,-500.0,0.00010958,2]
[352586052,1739181039295,-500.0,0.00010958,2]
[352586054,1739181039304,-2372.75,0.00010958,2]
[352586056,1739181039314,-500.0,0.00010958,2]
[352586058,1739181039323,-500.0,0.00010958,2]
[352586061,1739181039333,-1440.01,0.00010958,2]
[352586063,1739181039342,-500.0,0.00010958,2]
[352586066,1739181039351,-500.0,0.00010958,2]
[352586070,1739181039361,-500.0,0.00010958,2]
[352586074,1739181039371,-500.0,0.00010958,2]
[352586076,1739181039381,-4932.26,0.00010958,2]
[352586080,1739181039391,-991.17,0.00010958,2]
[352586083,1739181039400,-500.0,0.00010958,2]
[352586085,1739181039410,-1608.83,0.00010958,2]
[352586088,1739181039420,-623.05773966,0.00011017,2]
[352586091,1739181039429,-500.0,0.00011094,2]
[352586094,1739181039438,-500.0,0.00011094,2]
[352586097,1739181039448,-500.0,0.00011094,2]
[352586100,1739181039457,-500.0,0.00011095,2]
[352586103,1739181039467,-500.0,0.00011095,2]
[352586106,1739181039476,-500.0,0.00011095,2]
[352586109,1739181039486,-500.0,0.00011095,2]
[352586112,1739181039496,-500.0,0.00011095,2]
[352586116,1739181039506,-500.0,0.00011095,2]
[352586119,1739181039516,-500.0,0.00011095,2]
[352586122,1739181039525,-500.0,0.00011095,2]
[352586125,1739181039533,-500.0,0.00011095,2]
[352586127,1739181039543,-500.0,0.00011095,2]
[352586129,1739181039552,-500.0,0.00011095,2]
[352586131,1739181039561,-500.0,0.00011095,2]
[352586133,1739181039571,-500.0,0.00011095,2]
[352586134,1739181039582,-500.0,0.00011095,2]
[352586136,1739181039591,-500.0,0.00011095,2]
[352586137,1739181039601,-500.0,0.00011095,2]
[352586138,1739181039610,-500.0,0.00011095,2]
[352586139,1739181039620,-500.0,0.00011095,2]
[352586140,1739181039629,-500.0,0.00011095,2]
[352586141,1739181039639,-500.0,0.00011095,2]
[352586142,1739181039649,-500.0,0.00011095,2]
[352586143,1739181039658,-500.0,0.00011095,2]
[352586144,1739181039667,-580.44,0.00011095,2]
[352586145,1739181039677,-500.0,0.00011095,2]
[352586146,1739181039686,-500.0,0.00011095,2]
[352586147,1739181039695,-500.0,0.00011095,2]
[352586149,1739181039704,-500.0,0.00011095,2]
[352586151,1739181039714,-500.0,0.00011095,2]
[352586153,1739181039723,-551.98,0.00011095,2]
[352586155,1739181039732,-500.0,0.00011095,2]
[352586157,1739181039742,-500.0,0.00011095,2]
[352586159,1739181039753,-500.0,0.00011095,2]
[352586161,1739181039765,-500.0,0.00011095,2]
[352586163,1739181039774,-500.0,0.00011095,2]
[352586165,1739181039784,-500.0,0.00011095,2]
[352586167,1739181039793,-500.0,0.00011095,2]
[352586169,1739181039804,-605.42,0.00011095,2]
[352586171,1739181039813,-500.0,0.00011095,2]
[352586173,1739181039822,-500.0,0.00011095,2]
[352586175,1739181039831,-500.0,0.00011095,2]
[352586177,1739181039840,-13186.58,0.00011095,2]
[352586179,1739181039850,-500.0,0.00011095,2]
[352586181,1739181039859,-545.07,0.00011095,2]
[352586183,1739181039868,-500.0,0.00011095,2]
[352586185,1739181039877,-500.0,0.00011095,2]
[352586187,1739181039886,-633.8,0.00011095,2]
[352586190,1739181039896,-831.02,0.00011095,2]
[352586192,1739181039905,-500.0,0.00011095,2]
[352586194,1739181039915,-500.0,0.00011095,2]
[352586196,1739181039925,-500.0,0.00011095,2]
[352586198,1739181039934,-1142.13,0.00011095,2]
[352586200,1739181039943,-500.0,0.00011095,2]
[352586202,1739181039955,-500.0,0.00011095,2]
[352586204,1739181039964,-2410.65,0.00011095,2]
[352586206,1739181039974,-500.0,0.00011095,2]
[352586208,1739181039983,-500.0,0.00011095,2]
[352586210,1739181039992,-388.23739994,0.00011095,2]
[352586212,1739181040002,-500.0,0.00011095,2]
[352586214,1739181040011,-500.0,0.00011095,2]
[352586216,1739181040020,-1257.12,0.00011095,2]
[352586218,1739181040029,-500.0,0.00011095,2]
[352586220,1739181040038,-512.8,0.00011095,2]
[352586222,1739181040047,-500.0,0.00011095,2]
[352586223,1739181040057,-548.51,0.00011095,2]
[352586225,1739181040068,-500.0,0.00011095,2]
[352586227,1739181040077,-975.34,0.00011095,2]
[352586230,1739181040087,-500.0,0.00011095,2]
[352586232,1739181040096,-500.0,0.00011095,2]
[352586234,1739181040105,-500.0,0.00011095,2]
[352586236,1739181040114,-500.0,0.00011095,2]
[352586238,1739181040123,-566.05,0.00011095,2]
[352586240,1739181040133,-6173.59,0.00011095,2]
[352586242,1739181040142,-500.0,0.00011095,2]
[352586244,1739181040151,-500.0,0.00011095,2]
[352586246,1739181040160,-500.0,0.00011095,2]
[352586248,1739181040169,-760.91,0.00011095,2]
[352586250,1739181040178,-500.0,0.00011095,2]
[352586252,1739181040187,-674.84,0.00011095,2]
[352586254,1739181040196,-500.0,0.00011095,2]
[352586256,1739181040206,-1201.35,0.00011095,2]
[352586258,1739181040216,-500.0,0.00011095,2]
[352586260,1739181040226,-500.0,0.00011095,2]
[352586262,1739181040236,-1666.01,0.00011095,2]
[352586264,1739181040245,-500.0,0.00011095,2]
[352586266,1739181040256,-649.17,0.00011095,2]
[352586268,1739181040265,-500.0,0.00011095,2]
[352586270,1739181040274,-500.0,0.00011095,2]
[352586272,1739181040283,-500.0,0.00011095,2]
[352586274,1739181040293,-500.0,0.00011095,2]
[352586276,1739181040301,-580.76542839,0.00011095,2]
[352586278,1739181040311,-2372.75,0.00011095,2]
[352586279,1739181040320,-500.0,0.00011095,2]
[352586281,1739181040329,-1440.01,0.00011095,2]
[352586283,1739181040338,-500.0,0.00011095,2]
[352586285,1739181040348,-327.31765265,0.00011095,2]
[352586288,1739181040357,-500.0,0.00011095,2]
[352586290,1739181040373,-4932.26,0.00011095,2]
[352586292,1739181040383,-991.17,0.00011095,2]
[352586294,1739181040392,-212.69559634,0.00011132,2]
[352586296,1739181040401,-500.0,0.00011231,2]
[352586297,1739181040411,-500.0,0.00011231,2]
[352586300,1739181040421,-249.24,0.00011231,2]
[352586302,1739181040430,-394.98875047,0.00011232,2]
[352586304,1739181040439,-500.0,0.00011232,2]
[352586306,1739181040449,-500.0,0.00011232,2]
[352586308,1739181040459,-500.0,0.00011232,2]
[352586310,1739181040468,-500.0,0.00011232,2]
[352586312,1739181040478,-500.0,0.00011232,2]
[352586314,1739181040487,-500.0,0.00011232,2]
[352586316,1739181040498,-500.0,0.00011232,2]
[352586318,1739181040510,-500.0,0.00011232,2]
[352586320,1739181040519,-500.0,0.00011232,2]
[352586322,1739181040529,-500.0,0.00011232,2]
[352586324,1739181040539,-500.0,0.00011232,2]
[352586326,1739181040550,-363.96941578,0.00011232,2]
[352586328,1739181040560,-500.0,0.00011232,2]
[352586330,1739181040570,-500.0,0.00011232,2]
[352586332,1739181040581,-500.0,0.00011232,2]
[352586334,1739181040591,-500.0,0.00011232,2]
[352586336,1739181040600,-500.0,0.00011232,2]
[352586338,1739181040610,-500.0,0.00011232,2]
[352586340,1739181040620,-624.31537494,0.00011232,2]
[352586342,1739181040630,-580.44,0.00011232,2]
[352586344,1739181040640,-500.0,0.00011232,2]
[352586346,1739181040649,-500.0,0.00011232,2]
[352586348,1739181040660,-500.0,0.00011232,2]
[352586350,1739181040669,-500.0,0.00011232,2]
[352586352,1739181040678,-500.0,0.00011232,2]
[352586354,1739181040688,-422.85046026,0.00011232,2]
[352586356,1739181040698,-500.0,0.00011232,2]
[352586358,1739181040707,-500.0,0.00011232,2]
[352586360,1739181040717,-500.0,0.00011232,2]
[352586362,1739181040727,-605.42,0.00011232,2]
[352586364,1739181040736,-500.0,0.00011232,2]
[352586375,1739181040837,-500.0,0.00011232,2]
[352586377,1739181040846,-500.0,0.00011232,2]
[352586378,1739181040856,-13186.58,0.00011232,2]
[352586381,1739181040866,-290.86,0.00011232,2]
[352586383,1739181040875,-545.07,0.00011232,2]
[352586385,1739181040885,-500.0,0.00011232,2]
[352586387,1739181040894,-500.0,0.00011232,2]
[352586389,1739181040904,-633.8,0.00011232,2]
[352586391,1739181040914,-831.02,0.00011232,2]
[352586393,1739181040924,-500.0,0.00011232,2]
[352586395,1739181040933,-500.0,0.00011232,2]
[352586397,1739181040943,-500.0,0.00011232,2]
[352586399,1739181040954,-1142.13,0.00011232,2]
[352586401,1739181040963,-647.31,0.00011232,2]
[352586403,1739181040972,-500.0,0.00011232,2]
[352586405,1739181040982,-2410.65,0.00011232,2]
[352586407,1739181040991,-500.0,0.00011232,2]
[352586409,1739181041006,-254.66862441,0.00011232,2]
[352586411,1739181041017,-500.0,0.00011232,2]
[352586413,1739181041026,-500.0,0.00011232,2]
[352586415,1739181041035,-1257.12,0.00011232,2]
[352586417,1739181041045,-500.0,0.00011232,2]
[352586419,1739181041054,-512.8,0.00011232,2]
[352586421,1739181041064,-500.0,0.00011232,2]
[352586423,1739181041073,-548.51,0.00011232,2]
[352586425,1739181041083,-500.0,0.00011232,2]
[352586427,1739181041093,-975.34,0.00011232,2]
[352586429,1739181041102,-500.0,0.00011232,2]
[352586431,1739181041112,-500.0,0.00011232,2]
[352586433,1739181041122,-500.0,0.00011232,2]
[352586435,1739181041131,-500.0,0.00011232,2]
[352586437,1739181041140,-566.05,0.00011232,2]
[352586439,1739181041150,-6173.59,0.00011232,2]
[352586441,1739181041160,-500.0,0.00011232,2]
[352586443,1739181041169,-500.0,0.00011232,2]
[352586445,1739181041179,-760.91,0.00011232,2]
[352586447,1739181041188,-500.0,0.00011232,2]
[352586449,1739181041197,-674.84,0.00011232,2]
[352586451,1739181041207,-500.0,0.00011232,2]
[352586453,1739181041216,-1201.35,0.00011232,2]
[352586455,1739181041225,-500.0,0.00011232,2]
[352586457,1739181041235,-500.0,0.00011232,2]
[352586459,1739181041244,-1666.01,0.00011232,2]
[352586461,1739181041256,-649.17,0.00011232,2]
[352586463,1739181041265,-500.0,0.00011232,2]
[352586465,1739181041275,-500.0,0.00011232,2]
[352586467,1739181041285,-500.0,0.00011232,2]
[352586469,1739181041299,-2372.75,0.00011232,2]
[352586471,1739181041310,-500.0,0.00011232,2]
[352586473,1739181041321,-1440.01,0.00011232,2]
[352586475,1739181041331,-500.0,0.00011232,2]
[352586477,1739181041340,-500.0,0.00011232,2]
[352586480,1739181041351,-4932.26,0.00011232,2]
[352586482,1739181041361,-991.17,0.00011232,2]
[352586484,1739181041370,-501.07476383,0.00011289,2]
[352586486,1739181041379,-638.97571143,0.00011368,2]
[352586488,1739181041390,-500.0,0.00011369,2]
[352586490,1739181041399,-500.0,0.00011369,2]
[352586492,1739181041409,-500.0,0.00011369,2]
[352586494,1739181041419,-500.0,0.00011369,2]
[352586496,1739181041428,-500.0,0.00011369,2]
[352586498,1739181041438,-500.0,0.00011369,2]
[352586500,1739181041447,-500.0,0.00011369,2]
[352586501,1739181041457,-500.0,0.00011369,2]
[352586503,1739181041466,-500.0,0.00011369,2]
[352586505,1739181041476,-500.0,0.00011369,2]
[352586507,1739181041486,-500.0,0.00011369,2]
[352586509,1739181041496,-500.0,0.00011369,2]
[352586511,1739181041507,-500.0,0.00011369,2]
[352586513,1739181041517,-500.0,0.00011369,2]
[352586515,1739181041527,-500.0,0.00011369,2]
[352586517,1739181041537,-500.0,0.00011369,2]
[352586519,1739181041547,-580.44,0.00011369,2]
[352586521,1739181041556,-500.0,0.00011369,2]
[352586523,1739181041566,-500.0,0.00011369,2]
[352586525,1739181041575,-500.0,0.00011369,2]
[352586527,1739181041587,-500.0,0.00011369,2]
[352586529,1739181041596,-567.08,0.00011369,2]
[352586531,1739181041607,-500.0,0.00011369,2]
[352586533,1739181041616,-500.0,0.00011369,2]
[352586535,1739181041626,-500.0,0.00011369,2]
[352586537,1739181041635,-605.42,0.00011369,2]
[352586539,1739181041645,-500.0,0.00011369,2]
[352586541,1739181041655,-500.0,0.00011369,2]
[352586543,1739181041665,-500.0,0.00011369,2]
[352586545,1739181041675,-13186.58,0.00011369,2]
[352586547,1739181041685,-545.07,0.00011369,2]
[352586549,1739181041695,-500.0,0.00011369,2]
[352586551,1739181041705,-500.0,0.00011369,2]
[352586553,1739181041715,-633.8,0.00011369,2]
[352586555,1739181041724,-831.02,0.00011369,2]
[352586557,1739181041734,-500.0,0.00011369,2]
[352586559,1739181041744,-500.0,0.00011369,2]
[352586561,1739181041755,-500.0,0.00011369,2]
[352586563,1739181041766,-1142.13,0.00011369,2]
[352586565,1739181041776,-2410.65,0.00011369,2]
[352586567,1739181041785,-500.0,0.00011369,2]
[352586569,1739181041795,-500.0,0.00011369,2]
[352586571,1739181041805,-500.0,0.00011369,2]
[352586573,1739181041815,-1257.12,0.00011369,2]
[352586575,1739181041824,-500.0,0.00011369,2]
[352586577,1739181041835,-512.8,0.00011369,2]
[352586579,1739181041845,-500.0,0.00011369,2]
[352586582,1739181041855,-548.51,0.00011369,2]
[352586584,1739181041864,-500.0,0.00011369,2]
[352586586,1739181041874,-975.34,0.00011369,2]
[352586588,1739181041884,-500.0,0.00011369,2]
[352586590,1739181041893,-500.0,0.00011369,2]
[352586592,1739181041903,-500.0,0.00011369,2]
[352586593,1739181041913,-500.0,0.00011369,2]
[352586595,1739181041923,-566.05,0.00011369,2]
[352586597,1739181041932,-6173.59,0.00011369,2]
[352586598,1739181041942,-500.0,0.00011369,2]
[352586599,1739181041952,-500.0,0.00011369,2]
[352586600,1739181041962,-760.91,0.00011369,2]
[352586601,1739181041972,-500.0,0.00011369,2]
[352586602,1739181041982,-674.84,0.00011369,2]
[352586603,1739181041992,-500.0,0.00011369,2]
[352586605,1739181042002,-500.0,0.00011369,2]
[352586607,1739181042015,-1201.35,0.00011369,2]
[352586610,1739181042028,-500.0,0.00011369,2]
[352586612,1739181042040,-1666.01,0.00011369,2]
[352586614,1739181042053,-649.17,0.00011369,2]
[352586617,1739181042065,-500.0,0.00011369,2]
[352586618,1739181042076,-500.0,0.00011369,2]
[352586621,1739181042087,-500.0,0.00011369,2]
[352586623,1739181042100,-2372.75,0.00011369,2]
[352586625,1739181042113,-500.0,0.00011369,2]
[352586627,1739181042125,-1440.01,0.00011369,2]
[352586628,1739181042137,-500.0,0.00011369,2]
[352586629,1739181042150,-500.0,0.00011369,2]
[352586630,1739181042162,-4932.26,0.00011369,2]
[352586631,1739181042174,-991.17,0.00011369,2]
[352586632,1739181042187,-500.0,0.00011506,2]
[352586633,1739181042199,-500.0,0.00011506,2]
[352586634,1739181042211,-500.0,0.00011506,2]
[352586635,1739181042223,-500.0,0.00011506,2]
[352586636,1739181042235,-500.0,0.00011506,2]
[352586637,1739181042246,-500.0,0.00011506,2]
[352586638,1739181042259,-500.0,0.00011506,2]
[352586639,1739181042271,-500.0,0.00011506,2]
[352586640,1739181042283,-500.0,0.00011506,2]
[352586641,1739181042295,-500.0,0.00011506,2]
[352586642,1739181042307,-500.0,0.00011506,2]
[352586643,1739181042318,-500.0,0.00011506,2]
[352586644,1739181042328,-500.0,0.00011506,2]
[352586645,1739181042339,-500.0,0.00011506,2]
[352586646,1739181042351,-500.0,0.00011506,2]
[352586647,1739181042361,-580.44,0.00011506,2]
[352586648,1739181042373,-500.0,0.00011506,2]
[352586649,1739181042385,-500.0,0.00011506,2]
[352586650,1739181042397,-500.0,0.00011506,2]
[352586651,1739181042410,-500.0,0.00011506,2]
[352586652,1739181042421,-500.0,0.00011506,2]
[352586653,1739181042434,-500.0,0.00011506,2]
[352586654,1739181042447,-605.42,0.00011506,2]
[352586655,1739181042460,-500.0,0.00011506,2]
[352586657,1739181042473,-500.0,0.00011506,2]
[352586658,1739181042486,-500.0,0.00011506,2]
[352586659,1739181042496,-13186.58,0.00011506,2]
[352586660,1739181042508,-545.07,0.00011506,2]
[352586661,1739181042518,-500.0,0.00011506,2]
[352586662,1739181042528,-500.0,0.00011506,2]
[352586663,1739181042539,-633.8,0.00011506,2]
[352586664,1739181042551,-831.02,0.00011506,2]
[352586665,1739181042564,-500.0,0.00011506,2]
[352586666,1739181042576,-500.0,0.00011506,2]
[352586667,1739181042588,-500.0,0.00011506,2]
[352586668,1739181042598,-1142.13,0.00011506,2]
[352586669,1739181042610,-2410.65,0.00011506,2]
[352586670,1739181042620,-500.0,0.00011506,2]
[352586671,1739181042631,-500.0,0.00011506,2]
[352586673,1739181042643,-500.0,0.00011506,2]
[352586674,1739181042655,-1257.12,0.00011506,2]
[352586676,1739181042665,-500.0,0.00011506,2]
[352586679,1739181042676,-512.8,0.00011506,2]
[352586682,1739181042686,-500.0,0.00011506,2]
[352586684,1739181042697,-548.51,0.00011506,2]
[352586685,1739181042708,-500.0,0.00011506,2]
[352586686,1739181042719,-975.34,0.00011506,2]
[352586688,1739181042730,-500.0,0.00011506,2]
[352586690,1739181042740,-500.0,0.00011506,2]
[352586692,1739181042751,-500.0,0.00011506,2]
[352586694,1739181042766,-500.0,0.00011506,2]
[352586695,1739181042777,-566.05,0.00011506,2]
[352586696,1739181042788,-6173.59,0.00011506,2]
[352586697,1739181042799,-500.0,0.00011506,2]
[352586698,1739181042810,-760.91,0.00011506,2]
[352586699,1739181042820,-500.0,0.00011506,2]
[352586700,1739181042831,-500.0,0.00011506,2]
[352586701,1739181042843,-674.84,0.00011506,2]
[352586702,1739181042854,-500.0,0.00011506,2]
[352586703,1739181042865,-500.0,0.00011506,2]
[352586704,1739181042875,-1201.35,0.00011506,2]
[352586705,1739181042887,-500.0,0.00011506,2]
[352586706,1739181042897,-1666.01,0.00011506,2]
[352586707,1739181042908,-649.17,0.00011506,2]
[352586708,1739181042918,-215.54926548,0.00011506,2]
[352586709,1739181042930,-500.0,0.00011506,2]
[352586710,1739181042940,-500.0,0.00011506,2]
[352586712,1739181042951,-2372.75,0.00011506,2]
[352586715,1739181042962,-500.0,0.00011506,2]
[352586717,1739181042972,-1440.01,0.00011506,2]
[352586719,1739181042983,-500.0,0.00011506,2]
[352586721,1739181042995,-500.0,0.00011506,2]
[352586723,1739181043005,-4932.26,0.00011506,2]
[352586725,1739181043016,-991.17,0.00011506,2]
[352586727,1739181043027,-360.60598572,0.00011544,2]
[352586728,1739181043037,-500.0,0.00011544,2]
[352586729,1739181043048,-500.0,0.00011552,2]
[352586730,1739181043058,-500.0,0.00011597,2]
[352586731,1739181043069,-500.0,0.00011597,2]
[352586732,1739181043080,-212.69559634,0.00011599,2]
[352586733,1739181043091,-500.0,0.00011606,2]
[352586734,1739181043102,-321.50910176,0.00011606,2]
[352586735,1739181043113,-501.62037964,0.00011606,2]
[352586736,1739181043123,-500.0,0.00011643,2]
[352586737,1739181043134,-500.0,0.00011643,2]
[352586738,1739181043144,-500.0,0.00011643,2]
[352586739,1739181043155,-500.0,0.00011643,2]
[352586740,1739181043165,-500.0,0.00011643,2]
[352586741,1739181043176,-500.0,0.00011643,2]
[352586742,1739181043187,-500.0,0.00011643,2]
[352586743,1739181043197,-500.0,0.00011643,2]
[352586744,1739181043207,-500.0,0.00011643,2]
[352586745,1739181043218,-500.0,0.00011643,2]
[352586746,1739181043229,-500.0,0.00011643,2]
[352586747,1739181043239,-500.0,0.00011643,2]
[352586748,1739181043251,-500.0,0.00011643,2]
[352586749,1739181043261,-500.0,0.00011643,2]
[352586750,1739181043272,-500.0,0.00011643,2]
[352586751,1739181043283,-580.44,0.00011643,2]
[352586752,1739181043293,-500.0,0.00011643,2]
[352586753,1739181043305,-500.0,0.00011643,2]
[352586754,1739181043315,-500.0,0.00011643,2]
[352586755,1739181043428,-500.0,0.00011643,2]
[352586756,1739181043464,-500.0,0.00011643,2]
[352586757,1739181043477,-500.0,0.00011643,2]
[352586758,1739181043488,-605.42,0.00011643,2]
[352586759,1739181043498,-500.0,0.00011643,2]
[352586760,1739181043509,-500.0,0.00011643,2]
[352586761,1739181043518,-500.0,0.00011643,2]
[352586762,1739181043528,-13186.58,0.00011643,2]
[352586763,1739181043538,-545.07,0.00011643,2]
[352586764,1739181043547,-500.0,0.00011643,2]
[352586765,1739181043557,-500.0,0.00011643,2]
[352586766,1739181043567,-633.8,0.00011643,2]
[352586767,1739181043576,-831.02,0.00011643,2]
[352586768,1739181043586,-500.0,0.00011643,2]
[352586769,1739181043596,-500.0,0.00011643,2]
[352586770,1739181043606,-500.0,0.00011643,2]
[352586771,1739181043616,-1142.13,0.00011643,2]
[352586772,1739181043626,-2410.65,0.00011643,2]
[352586773,1739181043635,-500.0,0.00011643,2]
[352586774,1739181043645,-500.0,0.00011643,2]
[352586775,1739181043655,-1257.12,0.00011643,2]
[352586776,1739181043664,-500.0,0.00011643,2]
[352586777,1739181043674,-512.8,0.00011643,2]
[352586778,1739181043683,-500.0,0.00011643,2]
[352586779,1739181043692,-548.51,0.00011643,2]
[352586780,1739181043702,-500.0,0.00011643,2]
[352586781,1739181043711,-975.34,0.00011643,2]
[352586782,1739181043720,-500.0,0.00011643,2]
[352586783,1739181043730,-500.0,0.00011643,2]
[352586784,1739181043740,-500.0,0.00011643,2]
[352586785,1739181043750,-500.0,0.00011643,2]
[352586786,1739181043762,-566.05,0.00011643,2]
[352586787,1739181043772,-6173.59,0.00011643,2]
[352586788,1739181043781,-500.0,0.00011643,2]
[352586789,1739181043790,-760.91,0.00011643,2]
[352586790,1739181043800,-500.0,0.00011643,2]
[352586791,1739181043809,-500.0,0.00011643,2]
[352586792,1739181043819,-674.84,0.00011643,2]
[352586793,1739181043828,-500.0,0.00011643,2]
[352586794,1739181043838,-197.5598342,0.00011643,2]
[352586795,1739181043847,-1201.35,0.00011643,2]
[352586796,1739181043856,-500.0,0.00011643,2]
[352586797,1739181043865,-1666.01,0.00011643,2]
[352586798,1739181043875,-649.17,0.00011643,2]
[352586799,1739181043884,-500.0,0.00011643,2]
[352586800,1739181043893,-500.0,0.00011643,2]
[352586801,1739181043903,-2372.75,0.00011643,2]
[352586802,1739181043913,-500.0,0.00011643,2]
[352586803,1739181043923,-1440.01,0.00011643,2]
[352586804,1739181043932,-401.42,0.00011643,2]
[352586805,1739181043942,-500.0,0.00011643,2]
[352586806,1739181043951,-4932.26,0.00011643,2]
[352586807,1739181043961,-991.17,0.00011643,2]
[352586808,1739181043970,-163.67726063,0.00011653,2]
[352586809,1739181043979,-500.0,0.00011653,2]
[352586810,1739181043989,-500.0,0.00011653,2]
[352586811,1739181043998,-500.0,0.00011653,2]
[352586812,1739181044008,-500.0,0.0001178,2]
[352586813,1739181044018,-349.33567255,0.0001178,2]
[352586814,1739181044027,-500.0,0.0001178,2]
[352586815,1739181044036,-500.0,0.0001178,2]
[352586816,1739181044045,-500.0,0.0001178,2]
[352586817,1739181044054,-500.0,0.0001178,2]
[352586818,1739181044063,-500.0,0.0001178,2]
[352586819,1739181044072,-500.0,0.0001178,2]
[352586820,1739181044081,-500.0,0.0001178,2]
[352586821,1739181044090,-500.0,0.0001178,2]
[352586822,1739181044099,-500.0,0.0001178,2]
[352586823,1739181044108,-500.0,0.0001178,2]
[352586824,1739181044118,-500.0,0.0001178,2]
[352586825,1739181044127,-500.0,0.0001178,2]
[352586826,1739181044136,-500.0,0.0001178,2]
[352586827,1739181044145,-580.44,0.0001178,2]
[352586828,1739181044155,-500.0,0.0001178,2]
[352586829,1739181044164,-500.0,0.0001178,2]
[352586830,1739181044173,-500.0,0.0001178,2]
[352586831,1739181044183,-500.0,0.0001178,2]
[352586832,1739181044192,-500.0,0.0001178,2]
[352586833,1739181044201,-500.0,0.0001178,2]
[352586834,1739181044211,-605.42,0.0001178,2]
[352586835,1739181044220,-500.0,0.0001178,2]
[352586836,1739181044230,-500.0,0.0001178,2]
[352586837,1739181044239,-500.0,0.0001178,2]
[352586838,1739181044249,-13186.58,0.0001178,2]
[352586839,1739181044258,-545.07,0.0001178,2]
[352586840,1739181044268,-500.0,0.0001178,2]
[352586841,1739181044278,-633.8,0.0001178,2]
[352586842,1739181044287,-831.02,0.0001178,2]
[352586843,1739181044298,-500.0,0.0001178,2]
[352586844,1739181044307,-500.0,0.0001178,2]
[352586845,1739181044317,-500.0,0.0001178,2]
[352586846,1739181044326,-1142.13,0.0001178,2]
[352586847,1739181044336,-2410.65,0.0001178,2]
[352586848,1739181044346,-500.0,0.0001178,2]
[352586849,1739181044355,-532.59101627,0.0001178,2]
[352586850,1739181044365,-1257.12,0.0001178,2]
[352586851,1739181044374,-500.0,0.0001178,2]
[352586852,1739181044383,-512.8,0.0001178,2]
[352586853,1739181044393,-500.0,0.0001178,2]
[352586854,1739181044402,-548.51,0.0001178,2]
[352586855,1739181044411,-500.0,0.0001178,2]
[352586856,1739181044420,-975.34,0.0001178,2]
[352586857,1739181044430,-500.0,0.0001178,2]
[352586858,1739181044440,-500.0,0.0001178,2]
[352586859,1739181044450,-500.0,0.0001178,2]